[Event "*** Titled Tuesday Blitz"]
[Site "Chess.com"]
[Date "2020.12.01"]
[Round "3"]
[White "Hypercar"]
[Black "RaneshRatnesan"]
[Result "1-0"]
[WhiteElo "2476"]
[BlackElo "2152"]
[TimeControl "180+1"]
[EndTime "10:24:13 PST"]
[Termination "Hypercar won by resignation"]

1. d4 {[%clk 0:03:00.9]} 1... d5 {[%clk 0:02:59.1]} 2. c4 {[%clk 0:03:00.8]}
2... c6 {[%clk 0:02:58.8]} 3. cxd5 {[%clk 0:03:00.6]} 3... cxd5 {[%clk
0:02:59.5]} 4. Nc3 {[%clk 0:03:01.5]} 4... Nf6 {[%clk 0:02:58.7]} 5. Bf4 {[%clk
0:03:01.6]} 5... Nc6 {[%clk 0:02:59.1]} 6. e3 {[%clk 0:03:01.7]} 6... Bf5 {[%clk
0:02:58.5]} 7. Nf3 {[%clk 0:03:01.3]} 7... e6 {[%clk 0:02:54.6]} 8. Qb3 {[%clk
0:03:01.9]} 8... Qb6 {[%clk 0:02:42.4]} 9. Bb5 {[%clk 0:02:58.8]} 9... Be7
{[%clk 0:02:25.9]} 10. O-O {[%clk 0:02:54.5]} 10... O-O {[%clk 0:02:24.9]} 11.
Na4 {[%clk 0:02:54.5]} 11... Qa5 {[%clk 0:02:11.7]} 12. Rfc1 {[%clk 0:02:52.7]}
12... Rfc8 {[%clk 0:02:01.9]} 13. h3 {[%clk 0:02:48.6]} 13... Ne4 {[%clk
0:01:53.2]} 14. Bd3 {[%clk 0:02:39.8]} 14... b6 {[%clk 0:01:48.9]} 15. a3 {[%clk
0:02:32.9]} 15... Nd8 {[%clk 0:01:23.5]} 16. Qb5 {[%clk 0:02:28.4]} 16... Qa6
{[%clk 0:01:16.7]} 17. Qxa6 {[%clk 0:02:26.8]} 17... Rxc1+ {[%clk 0:01:15.7]}
18. Rxc1 {[%clk 0:02:26.3]} 18... e5 {[%clk 0:01:13.1]} 19. Nxe5 {[%clk
0:02:24.9]} 1-0

[Event "*** Titled Tuesday Blitz"]
[Site "Chess.com"]
[Date "2020.12.01"]
[Round "3"]
[White "SanchezKelvin"]
[Black "Markov_Mikhail"]
[Result "0-1"]
[WhiteElo "2477"]
[BlackElo "2707"]
[TimeControl "180+1"]
[EndTime "10:24:19 PST"]
[Termination "Markov_Mikhail won by resignation"]

1. d4 {[%clk 0:02:58.2]} 1... Nf6 {[%clk 0:02:59.9]} 2. c4 {[%clk 0:02:57.7]}
2... e6 {[%clk 0:03:00.2]} 3. Nf3 {[%clk 0:02:57.2]} 3... d5 {[%clk 0:03:00.5]}
4. Nc3 {[%clk 0:02:56.6]} 4... Nbd7 {[%clk 0:02:59.5]} 5. Bg5 {[%clk 0:02:55.9]}
5... Be7 {[%clk 0:02:59.8]} 6. e3 {[%clk 0:02:55.4]} 6... O-O {[%clk 0:03:00.4]}
7. Qc2 {[%clk 0:02:55.1]} 7... h6 {[%clk 0:03:01.1]} 8. h4 {[%clk 0:02:49.7]}
8... c5 {[%clk 0:02:58.1]} 9. O-O-O {[%clk 0:02:44.8]} 9... cxd4 {[%clk
0:02:58.2]} 10. Rxd4 {[%clk 0:02:44]} 10... Qa5 {[%clk 0:02:17.3]} 11. Bxf6
{[%clk 0:02:26.2]} 11... Nxf6 {[%clk 0:02:16.8]} 12. cxd5 {[%clk 0:02:24.3]}
12... Nxd5 {[%clk 0:02:13.1]} 13. Nxd5 {[%clk 0:02:23]} 13... exd5 {[%clk
0:02:11.8]} 14. Kb1 {[%clk 0:02:21.8]} 14... Bf6 {[%clk 0:02:11.1]} 15. Ra4
{[%clk 0:02:21.2]} 15... Qb6 {[%clk 0:02:11.1]} 16. Be2 {[%clk 0:01:57.6]} 16...
Bf5 {[%clk 0:02:08.3]} 17. e4 {[%clk 0:01:50.2]} 17... dxe4 {[%clk 0:02:06.5]}
18. Ne1 {[%clk 0:01:44]} 18... Rac8 {[%clk 0:01:56.4]} 19. Qb3 {[%clk
0:01:38.6]} 19... Qxf2 {[%clk 0:01:56.9]} 0-1

[Event "*** Titled Tuesday Blitz"]
[Site "Chess.com"]
[Date "2020.12.01"]
[Round "3"]
[White "Kavyev_Ruslan"]
[Black "ObidObad"]
[Result "1-0"]
[WhiteElo "2521"]
[BlackElo "2305"]
[TimeControl "180+1"]
[EndTime "10:24:47 PST"]
[Termination "Kavyev_Ruslan won by resignation"]

1. d4 {[%clk 0:03:00.9]} 1... d5 {[%clk 0:02:59.3]} 2. c4 {[%clk 0:02:59.1]}
2... c6 {[%clk 0:03:00.1]} 3. Nf3 {[%clk 0:02:58.4]} 3... Nf6 {[%clk 0:02:59.9]}
4. g3 {[%clk 0:02:58.9]} 4... Bf5 {[%clk 0:02:58.9]} 5. Nc3 {[%clk 0:02:58.6]}
5... e6 {[%clk 0:02:58.3]} 6. Nh4 {[%clk 0:02:58.5]} 6... Bg4 {[%clk 0:02:57.9]}
7. h3 {[%clk 0:02:58.3]} 7... Bf5 {[%clk 0:02:57.1]} 8. Nxf5 {[%clk 0:02:58.1]}
8... exf5 {[%clk 0:02:57.3]} 9. Bg2 {[%clk 0:02:57.8]} 9... dxc4 {[%clk
0:02:54.4]} 10. e3 {[%clk 0:02:51.2]} 10... g6 {[%clk 0:02:54]} 11. Qe2 {[%clk
0:02:49.5]} 11... Bg7 {[%clk 0:02:49.5]} 12. Qxc4 {[%clk 0:02:49.5]} 12... O-O
{[%clk 0:02:50.1]} 13. O-O {[%clk 0:02:48.5]} 13... Nbd7 {[%clk 0:02:50.7]} 14.
b4 {[%clk 0:02:47.5]} 14... Nb6 {[%clk 0:02:47.4]} 15. Qb3 {[%clk 0:02:47.7]}
15... Nbd5 {[%clk 0:02:42.6]} 16. Bd2 {[%clk 0:02:44.6]} 16... Re8 {[%clk
0:02:35]} 17. Rfc1 {[%clk 0:02:44.4]} 17... Ne4 {[%clk 0:02:29]} 18. Be1 {[%clk
0:02:35.9]} 18... Nexc3 {[%clk 0:02:22.5]} 19. Bxc3 {[%clk 0:02:34.9]} 19...
Nxc3 {[%clk 0:02:22.8]} 20. Rxc3 {[%clk 0:02:33.1]} 20... Qd6 {[%clk 0:02:23.7]}
21. b5 {[%clk 0:02:29.6]} 21... cxb5 {[%clk 0:02:21.4]} 22. Qxb5 {[%clk
0:02:30.5]} 22... Rab8 {[%clk 0:02:07.8]} 23. Rac1 {[%clk 0:02:29.8]} 23... a6
{[%clk 0:02:08.1]} 24. Qb3 {[%clk 0:02:29]} 24... b5 {[%clk 0:02:08.1]} 25. Rc6
{[%clk 0:02:28.9]} 25... Qd8 {[%clk 0:01:52.8]} 26. Rxa6 {[%clk 0:02:27.5]}
26... b4 {[%clk 0:01:53.3]} 27. Rac6 {[%clk 0:02:26.4]} 27... Re7 {[%clk
0:01:51.7]} 28. R1c4 {[%clk 0:02:21.4]} 28... Bf8 {[%clk 0:01:42.1]} 29. h4
{[%clk 0:02:13.1]} 29... h5 {[%clk 0:01:41.4]} 30. Rc1 {[%clk 0:02:04]} 30...
Ra7 {[%clk 0:01:41.4]} 31. Rxg6+ {[%clk 0:02:03.7]} 31... Kh7 {[%clk 0:01:39.3]}
32. Rg5 {[%clk 0:02:03.4]} 32... Qxg5 {[%clk 0:01:38]} 33. hxg5 {[%clk
0:02:03.4]} 33... Bc5 {[%clk 0:01:37.9]} 34. Rxc5 {[%clk 0:02:02.8]} 1-0

[Event "*** Titled Tuesday Blitz"]
[Site "Chess.com"]
[Date "2020.12.01"]
[Round "3"]
[White "Azerichess"]
[Black "PotapovaM"]
[Result "1-0"]
[WhiteElo "2954"]
[BlackElo "2603"]
[TimeControl "180+1"]
[EndTime "10:24:53 PST"]
[Termination "Azerichess won by resignation"]

1. b3 {[%clk 0:03:00.9]} 1... Nf6 {[%clk 0:02:56.5]} 2. Bb2 {[%clk 0:03:01]}
2... d5 {[%clk 0:02:57.2]} 3. e3 {[%clk 0:03:00.7]} 3... e6 {[%clk 0:02:57.2]}
4. g4 {[%clk 0:02:57.7]} 4... c5 {[%clk 0:02:50.3]} 5. h4 {[%clk 0:02:56]} 5...
Nc6 {[%clk 0:02:48.2]} 6. g5 {[%clk 0:02:53.4]} 6... Ne4 {[%clk 0:02:48.2]} 7.
d3 {[%clk 0:02:51.5]} 7... Nd6 {[%clk 0:02:48.2]} 8. Nf3 {[%clk 0:02:42.6]} 8...
Bd7 {[%clk 0:02:37.2]} 9. Nbd2 {[%clk 0:02:41.4]} 9... Qc7 {[%clk 0:02:33.8]}
10. c4 {[%clk 0:02:40]} 10... dxc4 {[%clk 0:02:28.5]} 11. bxc4 {[%clk
0:02:34.5]} 11... Nf5 {[%clk 0:02:17.3]} 12. a3 {[%clk 0:02:27.4]} 12... O-O-O
{[%clk 0:02:14.2]} 13. Qc2 {[%clk 0:02:27.2]} 13... h6 {[%clk 0:02:07.6]} 14.
Rg1 {[%clk 0:02:21.1]} 14... hxg5 {[%clk 0:02:05.5]} 15. hxg5 {[%clk 0:02:22]}
15... Bd6 {[%clk 0:01:37.7]} 16. Ne4 {[%clk 0:02:17]} 16... Ne5 {[%clk
0:01:34.7]} 17. Nxd6+ {[%clk 0:02:16.2]} 17... Qxd6 {[%clk 0:01:22.6]} 18. Nxe5
{[%clk 0:02:14.1]} 18... Be8 {[%clk 0:01:20.3]} 19. O-O-O {[%clk 0:02:11.2]}
19... Rh2 {[%clk 0:01:19.6]} 20. Rg2 {[%clk 0:02:09.8]} 20... Rh1 {[%clk
0:01:19]} 21. Be2 {[%clk 0:02:09.7]} 21... Rxd1+ {[%clk 0:01:16.1]} 22. Qxd1
{[%clk 0:02:10.2]} 22... Qb6 {[%clk 0:01:15.4]} 23. Rh2 {[%clk 0:02:07.1]} 23...
Kb8 {[%clk 0:01:12.1]} 24. Rh8 {[%clk 0:02:06.1]} 24... f6 {[%clk 0:01:11.7]}
25. gxf6 {[%clk 0:02:04.6]} 25... gxf6 {[%clk 0:01:12.6]} 26. Rxe8 {[%clk
0:02:05]} 1-0

[Event "*** Titled Tuesday Blitz"]
[Site "Chess.com"]
[Date "2020.12.01"]
[Round "3"]
[White "nelsoncopa"]
[Black "Panterov"]
[Result "0-1"]
[WhiteElo "1959"]
[BlackElo "2288"]
[TimeControl "180+1"]
[EndTime "10:24:54 PST"]
[Termination "Panterov won by resignation"]

1. d4 {[%clk 0:01:46]} 1... d5 {[%clk 0:02:57.5]} 2. c4 {[%clk 0:01:44.7]} 2...
c6 {[%clk 0:02:57.9]} 3. Nc3 {[%clk 0:01:45.1]} 3... Nf6 {[%clk 0:02:58.3]} 4.
e3 {[%clk 0:01:45.2]} 4... e6 {[%clk 0:02:58.8]} 5. cxd5 {[%clk 0:01:44.9]} 5...
exd5 {[%clk 0:02:58.5]} 6. Nf3 {[%clk 0:01:44.7]} 6... Bd6 {[%clk 0:02:58.7]} 7.
Bd3 {[%clk 0:01:43.3]} 7... Bg4 {[%clk 0:02:58.7]} 8. O-O {[%clk 0:01:42.9]}
8... O-O {[%clk 0:02:58.6]} 9. a3 {[%clk 0:01:42.6]} 9... Bh5 {[%clk 0:02:58.8]}
10. b4 {[%clk 0:01:42.1]} 10... Nbd7 {[%clk 0:02:59]} 11. Bb2 {[%clk 0:01:41.4]}
11... Re8 {[%clk 0:02:59.2]} 12. Rc1 {[%clk 0:01:39.5]} 12... Ne4 {[%clk
0:02:58.7]} 13. Be2 {[%clk 0:01:36.7]} 13... Nxc3 {[%clk 0:02:57.9]} 14. Bxc3
{[%clk 0:01:35.5]} 14... Nf6 {[%clk 0:02:58.8]} 15. Ne5 {[%clk 0:01:34]} 15...
Bxe2 {[%clk 0:02:58]} 16. Qxe2 {[%clk 0:01:33.6]} 16... Ne4 {[%clk 0:02:58.4]}
17. Bb2 {[%clk 0:01:33.2]} 17... Bxe5 {[%clk 0:02:58.6]} 18. dxe5 {[%clk
0:01:32.4]} 18... Qh4 {[%clk 0:02:52.1]} 19. f4 {[%clk 0:01:27]} 19... a6 {[%clk
0:02:49.1]} 20. Rf3 {[%clk 0:01:23]} 20... f5 {[%clk 0:02:48.8]} 21. Rh3 {[%clk
0:01:15.3]} 21... Qg4 {[%clk 0:02:49]} 22. Qxg4 {[%clk 0:01:06.8]} 22... fxg4
{[%clk 0:02:49.2]} 23. Rh4 {[%clk 0:01:07.1]} 23... g3 {[%clk 0:02:47.7]} 24.
Rg4 {[%clk 0:00:51.5]} 24... gxh2+ {[%clk 0:02:46.6]} 25. Kxh2 {[%clk 0:00:51]}
25... Re6 {[%clk 0:02:37]} 26. Rh1 {[%clk 0:00:47.2]} 26... Rh6+ {[%clk
0:02:35.7]} 27. Kg1 {[%clk 0:00:46.6]} 27... Rxh1+ {[%clk 0:02:36.6]} 28. Kxh1
{[%clk 0:00:44.9]} 28... Nf2+ {[%clk 0:02:37.5]} 29. Kh2 {[%clk 0:00:44.7]}
29... Nxg4+ {[%clk 0:02:38.4]} 0-1

[Event "*** Titled Tuesday Blitz"]
[Site "Chess.com"]
[Date "2020.12.01"]
[Round "3"]
[White "fish7728"]
[Black "Omk124"]
[Result "0-1"]
[WhiteElo "2142"]
[BlackElo "2327"]
[TimeControl "180+1"]
[EndTime "10:25:00 PST"]
[Termination "Omk124 won by resignation"]

1. d4 {[%clk 0:03:00.9]} 1... Nf6 {[%clk 0:02:59.9]} 2. c4 {[%clk 0:02:59.4]}
2... g6 {[%clk 0:03:00.3]} 3. Nc3 {[%clk 0:02:59.5]} 3... d5 {[%clk 0:03:00.7]}
4. cxd5 {[%clk 0:02:58.6]} 4... Nxd5 {[%clk 0:03:01.6]} 5. Bd2 {[%clk
0:02:59.3]} 5... Bg7 {[%clk 0:03:01.7]} 6. e4 {[%clk 0:02:59.7]} 6... Nb6 {[%clk
0:03:02.3]} 7. Be3 {[%clk 0:02:59.5]} 7... O-O {[%clk 0:03:02.9]} 8. Nf3 {[%clk
0:02:58.3]} 8... Bg4 {[%clk 0:03:03]} 9. d5 {[%clk 0:02:54]} 9... N8d7 {[%clk
0:02:59.3]} 10. h3 {[%clk 0:02:54.1]} 10... Bxf3 {[%clk 0:02:59.4]} 11. Qxf3
{[%clk 0:02:55]} 11... Ne5 {[%clk 0:02:59.9]} 12. Qd1 {[%clk 0:02:54.3]} 12...
Nec4 {[%clk 0:03:00.4]} 13. Bd4 {[%clk 0:02:54.4]} 13... Nxb2 {[%clk 0:03:00.3]}
14. Qd2 {[%clk 0:02:53.1]} 14... N2c4 {[%clk 0:03:00.7]} 15. Qd1 {[%clk
0:02:52.9]} 15... Nb2 {[%clk 0:02:59.8]} 16. Qd2 {[%clk 0:02:53]} 16... N6c4
{[%clk 0:03:00.5]} 17. Bxc4 {[%clk 0:02:49.6]} 17... Nxc4 {[%clk 0:03:01.4]} 18.
Qd3 {[%clk 0:02:49.3]} 18... Bxd4 {[%clk 0:02:56.2]} 19. Qxd4 {[%clk 0:02:49.4]}
19... Na3 {[%clk 0:02:56.8]} 20. Rc1 {[%clk 0:02:46.2]} 20... c6 {[%clk
0:02:56.2]} 21. O-O {[%clk 0:02:45.9]} 21... a6 {[%clk 0:02:37.5]} 22. Rfd1
{[%clk 0:02:40.7]} 22... Nb5 {[%clk 0:02:34.1]} 23. Nxb5 {[%clk 0:02:39.4]}
23... cxb5 {[%clk 0:02:35]} 24. e5 {[%clk 0:02:35.5]} 24... Qa5 {[%clk
0:02:34.8]} 25. d6 {[%clk 0:02:25.3]} 25... exd6 {[%clk 0:02:34.3]} 26. exd6
{[%clk 0:02:25.7]} 26... Qxa2 {[%clk 0:02:34.4]} 27. d7 {[%clk 0:02:22.5]} 27...
Qe6 {[%clk 0:02:32.7]} 28. Re1 {[%clk 0:02:20.6]} 28... Qa2 {[%clk 0:02:22.4]}
29. Re7 {[%clk 0:02:17.1]} 29... Qa5 {[%clk 0:02:20.5]} 30. Rce1 {[%clk
0:02:06.7]} 30... b4 {[%clk 0:01:59.3]} 31. Re8 {[%clk 0:02:00.4]} 31... b3
{[%clk 0:01:58.2]} 32. Rxa8 {[%clk 0:01:52.5]} 32... Qxe1+ {[%clk 0:01:55.4]}
33. Kh2 {[%clk 0:01:52.3]} 33... Rxa8 {[%clk 0:01:55.6]} 34. d8=Q+ {[%clk
0:01:50.1]} 34... Rxd8 {[%clk 0:01:55.4]} 35. Qxd8+ {[%clk 0:01:51]} 35... Kg7
{[%clk 0:01:54.9]} 36. Qd4+ {[%clk 0:01:49]} 36... f6 {[%clk 0:01:54.3]} 37. Qd6
{[%clk 0:01:42.8]} 37... Qe5+ {[%clk 0:01:53.6]} 38. Qxe5 {[%clk 0:01:42.6]}
38... fxe5 {[%clk 0:01:54.5]} 0-1

[Event "*** Titled Tuesday Blitz"]
[Site "Chess.com"]
[Date "2020.12.01"]
[Round "3"]
[White "maximnovik"]
[Black "Andrii_Prydun"]
[Result "1-0"]
[WhiteElo "2552"]
[BlackElo "2340"]
[TimeControl "180+1"]
[EndTime "10:25:18 PST"]
[Termination "maximnovik won by checkmate"]

1. d4 {[%clk 0:03:00.9]} 1... d5 {[%clk 0:03:00.9]} 2. c4 {[%clk 0:03:00.1]}
2... c6 {[%clk 0:03:01.8]} 3. Nc3 {[%clk 0:03:00.4]} 3... Nf6 {[%clk 0:03:02.4]}
4. Bf4 {[%clk 0:03:00.7]} 4... e6 {[%clk 0:02:59.1]} 5. e3 {[%clk 0:03:00.9]}
5... Bd6 {[%clk 0:02:58.4]} 6. Bg3 {[%clk 0:02:58.4]} 6... Bxg3 {[%clk
0:02:58.2]} 7. hxg3 {[%clk 0:02:57.1]} 7... Nbd7 {[%clk 0:02:58.8]} 8. Nf3
{[%clk 0:02:57.4]} 8... O-O {[%clk 0:02:57]} 9. Qc2 {[%clk 0:02:56.5]} 9... Qe7
{[%clk 0:02:54.1]} 10. g4 {[%clk 0:02:55.9]} 10... g6 {[%clk 0:02:50.2]} 11. g5
{[%clk 0:02:51.9]} 11... Ne8 {[%clk 0:02:49.3]} 12. O-O-O {[%clk 0:02:48.2]}
12... b6 {[%clk 0:02:41.9]} 13. Be2 {[%clk 0:02:43.7]} 13... Ba6 {[%clk
0:02:40.3]} 14. Rh6 {[%clk 0:02:36.3]} 14... dxc4 {[%clk 0:02:21.6]} 15. Rdh1
{[%clk 0:02:35.2]} 15... f5 {[%clk 0:02:20.7]} 16. Rxh7 {[%clk 0:02:32.1]} 16...
Qxh7 {[%clk 0:02:21.6]} 17. Rxh7 {[%clk 0:02:31.9]} 17... Kxh7 {[%clk
0:02:22.4]} 18. Qa4 {[%clk 0:02:28]} 18... Nb8 {[%clk 0:02:00.1]} 19. Bxc4
{[%clk 0:02:25.7]} 19... b5 {[%clk 0:01:59.1]} 20. Qa3 {[%clk 0:02:25.8]} 20...
Rf7 {[%clk 0:01:43.1]} 21. Bxe6 {[%clk 0:02:25.4]} 21... Rb7 {[%clk 0:01:44]}
22. Qf8 {[%clk 0:02:22.1]} 22... Rg7 {[%clk 0:01:14.7]} 23. Qxe8 {[%clk
0:02:19.7]} 23... Bb7 {[%clk 0:01:13.5]} 24. Qf8 {[%clk 0:02:06.5]} 24... Nd7
{[%clk 0:00:48.3]} 25. Qd6 {[%clk 0:02:05.8]} 25... Nf8 {[%clk 0:00:44.6]} 26.
Qh2# {[%clk 0:02:02.1]} 1-0

[Event "*** Titled Tuesday Blitz"]
[Site "Chess.com"]
[Date "2020.12.01"]
[Round "3"]
[White "LiamVrolijk"]
[Black "shnitez"]
[Result "1-0"]
[WhiteElo "2829"]
[BlackElo "2568"]
[TimeControl "180+1"]
[EndTime "10:25:20 PST"]
[Termination "LiamVrolijk won by resignation"]

1. e4 {[%clk 0:02:59.4]} 1... c5 {[%clk 0:02:59.4]} 2. Nf3 {[%clk 0:02:59.2]}
2... e6 {[%clk 0:02:59.4]} 3. g3 {[%clk 0:02:57.2]} 3... Nc6 {[%clk 0:02:55.8]}
4. Bg2 {[%clk 0:02:57.1]} 4... Nf6 {[%clk 0:02:50.4]} 5. Qe2 {[%clk 0:02:57.3]}
5... d5 {[%clk 0:02:48.6]} 6. exd5 {[%clk 0:02:57.1]} 6... Nxd5 {[%clk
0:02:48.5]} 7. O-O {[%clk 0:02:57.8]} 7... Be7 {[%clk 0:02:48]} 8. Rd1 {[%clk
0:02:57.8]} 8... Bf6 {[%clk 0:02:42.1]} 9. Nc3 {[%clk 0:02:44.2]} 9... O-O
{[%clk 0:02:37]} 10. Ne4 {[%clk 0:02:44.4]} 10... b6 {[%clk 0:01:53.6]} 11.
Nxf6+ {[%clk 0:02:39.2]} 11... Qxf6 {[%clk 0:01:54.5]} 12. c4 {[%clk 0:02:22.8]}
12... Nde7 {[%clk 0:01:46.1]} 13. d4 {[%clk 0:02:21.7]} 13... cxd4 {[%clk
0:01:36.5]} 14. Bg5 {[%clk 0:02:21.6]} 14... d3 {[%clk 0:00:34.2]} 15. Rxd3
{[%clk 0:02:16.7]} 15... Qf5 {[%clk 0:00:26.8]} 16. Bxe7 {[%clk 0:02:14.9]}
16... Nxe7 {[%clk 0:00:24.3]} 17. Nd4 {[%clk 0:02:12.9]} 1-0

[Event "*** Titled Tuesday Blitz"]
[Site "Chess.com"]
[Date "2020.12.01"]
[Round "3"]
[White "Kildepiotr"]
[Black "Cambek64"]
[Result "1-0"]
[WhiteElo "2621"]
[BlackElo "2261"]
[TimeControl "180+1"]
[EndTime "10:25:21 PST"]
[Termination "Kildepiotr won by resignation"]

1. Nf3 {[%clk 0:03:00.9]} 1... d6 {[%clk 0:02:59.3]} 2. d4 {[%clk 0:03:00]} 2...
Nf6 {[%clk 0:02:59.4]} 3. g3 {[%clk 0:03:00.5]} 3... g6 {[%clk 0:02:59.3]} 4.
Bg2 {[%clk 0:03:00.1]} 4... Bg7 {[%clk 0:03:00]} 5. O-O {[%clk 0:03:01]} 5...
O-O {[%clk 0:03:00.4]} 6. Nbd2 {[%clk 0:03:01.9]} 6... Nbd7 {[%clk 0:02:58.6]}
7. e4 {[%clk 0:03:01.7]} 7... e5 {[%clk 0:02:53.7]} 8. dxe5 {[%clk 0:03:02.6]}
8... Nxe5 {[%clk 0:02:52.9]} 9. Nxe5 {[%clk 0:03:02.2]} 9... dxe5 {[%clk
0:02:53.4]} 10. Qe2 {[%clk 0:03:02.9]} 10... a5 {[%clk 0:02:48.3]} 11. a4 {[%clk
0:03:00.3]} 11... b6 {[%clk 0:02:48.6]} 12. Rd1 {[%clk 0:02:59.2]} 12... Ba6
{[%clk 0:02:48.8]} 13. Qe1 {[%clk 0:02:59.2]} 13... Qe7 {[%clk 0:02:47.5]} 14.
b3 {[%clk 0:02:59.4]} 14... Rfd8 {[%clk 0:02:46.9]} 15. Bb2 {[%clk 0:02:58.9]}
15... Ne8 {[%clk 0:02:40.5]} 16. Bf1 {[%clk 0:02:57.6]} 16... Bxf1 {[%clk
0:02:34.6]} 17. Qxf1 {[%clk 0:02:58.5]} 17... Nd6 {[%clk 0:02:29.4]} 18. Ba3
{[%clk 0:02:58.2]} 18... Qe6 {[%clk 0:02:29.7]} 19. Bxd6 {[%clk 0:02:54.7]}
19... Rxd6 {[%clk 0:02:30.2]} 20. Nc4 {[%clk 0:02:54.7]} 20... Rdd8 {[%clk
0:02:27]} 21. Rd3 {[%clk 0:02:51.3]} 21... Bf8 {[%clk 0:02:22.3]} 22. Rad1
{[%clk 0:02:50.3]} 22... Be7 {[%clk 0:02:21.5]} 23. Qe2 {[%clk 0:02:45.5]} 23...
f6 {[%clk 0:02:20.3]} 24. Ne3 {[%clk 0:02:39]} 24... Rxd3 {[%clk 0:02:16.1]} 25.
Rxd3 {[%clk 0:02:39.4]} 25... Rd8 {[%clk 0:02:16.1]} 26. Nd5 {[%clk 0:02:34.3]}
26... Kf7 {[%clk 0:02:12.7]} 27. Nxc7 {[%clk 0:02:32.2]} 27... Qc6 {[%clk
0:02:10.3]} 28. Rxd8 {[%clk 0:02:28.1]} 28... Bxd8 {[%clk 0:02:07.3]} 29. Nd5
{[%clk 0:02:28.5]} 29... Be7 {[%clk 0:02:03.6]} 30. Kg2 {[%clk 0:02:18.2]} 30...
Bc5 {[%clk 0:02:03.2]} 31. Qc4 {[%clk 0:02:17.9]} 31... Kg7 {[%clk 0:02:00.2]}
32. c3 {[%clk 0:02:15.8]} 32... Qd6 {[%clk 0:01:58.9]} 33. b4 {[%clk 0:02:14.6]}
33... axb4 {[%clk 0:01:59.2]} 34. cxb4 {[%clk 0:02:15.5]} 34... Bd4 {[%clk
0:01:59.4]} 35. Qc7+ {[%clk 0:02:15.5]} 35... Qxc7 {[%clk 0:01:59.7]} 36. Nxc7
{[%clk 0:02:16.4]} 36... Kf7 {[%clk 0:01:59.8]} 37. Kf1 {[%clk 0:02:13.8]} 37...
f5 {[%clk 0:01:57.6]} 38. f3 {[%clk 0:02:13.1]} 38... Ke7 {[%clk 0:01:55]} 39.
Nd5+ {[%clk 0:02:11.4]} 39... Kd6 {[%clk 0:01:55.2]} 40. Ke2 {[%clk 0:02:11.5]}
40... fxe4 {[%clk 0:01:48.6]} 41. fxe4 {[%clk 0:02:11]} 41... h5 {[%clk
0:01:49]} 42. h3 {[%clk 0:02:11.1]} 42... Bg1 {[%clk 0:01:40.8]} 43. Kd3 {[%clk
0:02:10.3]} 43... Bf2 {[%clk 0:01:39.5]} 44. g4 {[%clk 0:02:09.8]} 44... hxg4
{[%clk 0:01:38.3]} 45. hxg4 {[%clk 0:02:10.7]} 45... Bg1 {[%clk 0:01:37.5]} 46.
Kc4 {[%clk 0:02:10.6]} 1-0

[Event "*** Titled Tuesday Blitz"]
[Site "Chess.com"]
[Date "2020.12.01"]
[Round "3"]
[White "Jungle_Jaguar"]
[Black "Saylormoon"]
[Result "1-0"]
[WhiteElo "2557"]
[BlackElo "2341"]
[TimeControl "180+1"]
[EndTime "10:25:22 PST"]
[Termination "Jungle_Jaguar won by resignation"]

1. e4 {[%clk 0:03:00.9]} 1... c5 {[%clk 0:02:55.4]} 2. Nf3 {[%clk 0:02:59.9]}
2... Nc6 {[%clk 0:02:53.7]} 3. Bb5 {[%clk 0:02:59]} 3... g6 {[%clk 0:02:53.2]}
4. Bxc6 {[%clk 0:02:58.9]} 4... dxc6 {[%clk 0:02:54.1]} 5. d3 {[%clk 0:02:58.1]}
5... Bg7 {[%clk 0:02:54.2]} 6. h3 {[%clk 0:02:58.1]} 6... Nf6 {[%clk 0:02:54.2]}
7. Nc3 {[%clk 0:02:56.1]} 7... O-O {[%clk 0:02:53]} 8. Be3 {[%clk 0:02:56.1]}
8... b6 {[%clk 0:02:49.4]} 9. Qd2 {[%clk 0:02:55.8]} 9... Ne8 {[%clk 0:02:29.5]}
10. O-O {[%clk 0:02:53.3]} 10... e5 {[%clk 0:02:28.6]} 11. a3 {[%clk 0:02:53]}
11... Qe7 {[%clk 0:02:26.7]} 12. b4 {[%clk 0:02:49.6]} 12... cxb4 {[%clk
0:02:25.5]} 13. axb4 {[%clk 0:02:49.6]} 13... Qxb4 {[%clk 0:02:21.1]} 14. Rfb1
{[%clk 0:02:49.4]} 14... Qe7 {[%clk 0:02:21.1]} 15. Bxb6 {[%clk 0:02:43.7]}
15... Nc7 {[%clk 0:01:33.7]} 16. Bxa7 {[%clk 0:02:31]} 16... Ne6 {[%clk
0:01:27.2]} 17. Bc5 {[%clk 0:02:24.1]} 17... Qxc5 {[%clk 0:01:19.3]} 18. Rxa8
{[%clk 0:02:22.8]} 18... Nf4 {[%clk 0:01:19.8]} 19. Rbb8 {[%clk 0:02:18.8]}
19... Be6 {[%clk 0:00:56.1]} 20. Ne2 {[%clk 0:02:08.3]} 20... Nxe2+ {[%clk
0:00:27.4]} 21. Qxe2 {[%clk 0:02:06.8]} 1-0

[Event "*** Titled Tuesday Blitz"]
[Site "Chess.com"]
[Date "2020.12.01"]
[Round "3"]
[White "Faqade"]
[Black "penguingm1"]
[Result "1-0"]
[WhiteElo "2705"]
[BlackElo "2982"]
[TimeControl "180+1"]
[EndTime "10:25:24 PST"]
[Termination "Faqade won by resignation"]

1. e4 {[%clk 0:03:00.9]} 1... e5 {[%clk 0:02:58.7]} 2. Nf3 {[%clk 0:03:00.4]}
2... Nc6 {[%clk 0:02:58.5]} 3. Nc3 {[%clk 0:03:01]} 3... Nf6 {[%clk 0:02:57.8]}
4. d4 {[%clk 0:03:01]} 4... exd4 {[%clk 0:02:58.7]} 5. Nxd4 {[%clk 0:03:01.9]}
5... Bb4 {[%clk 0:02:59.2]} 6. Nxc6 {[%clk 0:03:02.1]} 6... bxc6 {[%clk
0:03:00.1]} 7. Bd3 {[%clk 0:03:02.7]} 7... d5 {[%clk 0:03:00.3]} 8. Bd2 {[%clk
0:03:03.1]} 8... O-O {[%clk 0:02:58.5]} 9. O-O {[%clk 0:03:03.1]} 9... Bg4
{[%clk 0:02:34.9]} 10. f3 {[%clk 0:03:00.9]} 10... Bh5 {[%clk 0:02:33.7]} 11.
Nxd5 {[%clk 0:02:52.6]} 11... Nxd5 {[%clk 0:02:27.5]} 12. exd5 {[%clk
0:02:51.8]} 12... Bc5+ {[%clk 0:02:27.6]} 13. Kh1 {[%clk 0:02:49.8]} 13... cxd5
{[%clk 0:02:27.5]} 14. c4 {[%clk 0:02:44.9]} 14... dxc4 {[%clk 0:01:46.4]} 15.
Bxc4 {[%clk 0:02:28.2]} 15... Qh4 {[%clk 0:01:45.7]} 16. Qa4 {[%clk 0:02:28.6]}
16... Qf6 {[%clk 0:01:26.7]} 17. Bc3 {[%clk 0:02:16.8]} 17... Qh6 {[%clk
0:01:23.6]} 18. Be5 {[%clk 0:02:16.4]} 18... Bb6 {[%clk 0:01:17.7]} 19. Rad1
{[%clk 0:02:09.6]} 19... Rfe8 {[%clk 0:01:17]} 20. Bg3 {[%clk 0:02:04.5]} 20...
Qf6 {[%clk 0:01:10.3]} 21. b3 {[%clk 0:01:58.8]} 21... Bg6 {[%clk 0:00:49.3]}
22. Rfe1 {[%clk 0:01:59.1]} 22... h5 {[%clk 0:00:45.2]} 23. Rxe8+ {[%clk
0:01:58.1]} 1-0